[Event "*** Titled Tuesday Blitz"]
[Site "Chess.com"]
[Date "2020.03.03"]
[Round "9"]
[White "doons21"]
[Black "MarcoRiehle"]
[Result "0-1"]
[WhiteElo "2591"]
[BlackElo "2749"]
[TimeControl "180+1"]
[EndTime "10:42:21 PST"]
[Termination "MarcoRiehle won by resignation"]

1. e4 {[%clk 0:03:00.9]} 1... e5 {[%clk 0:02:59.7]} 2. Nf3 {[%clk 0:02:58.9]}
2... Nf6 {[%clk 0:03:00.1]} 3. Nc3 {[%clk 0:02:58.2]} 3... Nc6 {[%clk
0:02:59.4]} 4. g3 {[%clk 0:02:58.1]} 4... d5 {[%clk 0:02:58.5]} 5. exd5 {[%clk
0:02:59]} 5... Nxd5 {[%clk 0:02:59]} 6. Bg2 {[%clk 0:02:59.5]} 6... Nxc3 {[%clk
0:02:53.5]} 7. bxc3 {[%clk 0:03:00.4]} 7... Bc5 {[%clk 0:02:53.5]} 8. O-O {[%clk
0:03:00.4]} 8... O-O {[%clk 0:02:53.2]} 9. Re1 {[%clk 0:03:00.8]} 9... Re8
{[%clk 0:02:53.2]} 10. d4 {[%clk 0:02:58.9]} 10... Bb6 {[%clk 0:02:51.9]} 11.
dxe5 {[%clk 0:02:44.2]} 11... Qxd1 {[%clk 0:02:51]} 12. Rxd1 {[%clk 0:02:43.8]}
12... Bg4 {[%clk 0:02:47.5]} 13. Bf4 {[%clk 0:02:43]} 13... Rad8 {[%clk
0:02:44.2]} 14. Rd3 {[%clk 0:01:50.8]} 14... Bf5 {[%clk 0:02:36.5]} 15. Rxd8
{[%clk 0:01:51.1]} 15... Rxd8 {[%clk 0:02:37.4]} 16. Rc1 {[%clk 0:01:51.4]}
16... h6 {[%clk 0:02:32.8]} 17. Kf1 {[%clk 0:01:38.7]} 17... g5 {[%clk 0:02:29]}
18. Be3 {[%clk 0:01:35.8]} 18... Bxe3 {[%clk 0:02:26.6]} 19. fxe3 {[%clk
0:01:36.7]} 19... Be4 {[%clk 0:02:26.1]} 20. Ke2 {[%clk 0:01:16.6]} 20... b6
{[%clk 0:02:20.9]} 21. Bh3 {[%clk 0:01:01.7]} 21... Bxf3+ {[%clk 0:02:10.5]} 22.
Kxf3 {[%clk 0:01:01.7]} 22... Nxe5+ {[%clk 0:02:10.8]} 23. Ke4 {[%clk
0:01:02.6]} 23... Nc4 {[%clk 0:02:10.7]} 24. Bf1 {[%clk 0:00:48.5]} 24... Nd2+
{[%clk 0:02:07]} 25. Kf5 {[%clk 0:00:44.7]} 25... Rd5+ {[%clk 0:01:56.2]} 26.
Kf6 {[%clk 0:00:41.7]} 26... Kf8 {[%clk 0:01:49.9]} 27. Bd3 {[%clk 0:00:42.1]}
27... c5 {[%clk 0:01:39.3]} 28. c4 {[%clk 0:00:40]} 28... Rd6+ {[%clk 0:01:34]}
29. Ke5 {[%clk 0:00:40.3]} 29... Ke7 {[%clk 0:01:34.3]} 30. h4 {[%clk
0:00:40.6]} 30... f6+ {[%clk 0:01:34.2]} 31. Kf5 {[%clk 0:00:39.9]} 31... Nf3
{[%clk 0:01:30.3]} 32. hxg5 {[%clk 0:00:39.6]} 32... fxg5 {[%clk 0:01:25.2]} 33.
Ke4 {[%clk 0:00:39.3]} 33... Nd2+ {[%clk 0:01:23.9]} 34. Kf5 {[%clk 0:00:37.6]}
34... Rf6+ {[%clk 0:01:22.9]} 35. Ke5 {[%clk 0:00:36.6]} 35... Re6+ {[%clk
0:01:22.1]} 36. Kd5 {[%clk 0:00:36.2]} 36... Nf3 {[%clk 0:01:16.4]} 37. Rf1
{[%clk 0:00:31.9]} 37... Rd6+ {[%clk 0:01:15.3]} 38. Ke4 {[%clk 0:00:30.4]}
38... Nd2+ {[%clk 0:01:15.6]} 39. Ke5 {[%clk 0:00:30.7]} 39... Nxf1 {[%clk
0:01:12]} 40. Bxf1 {[%clk 0:00:31.6]} 40... Re6+ {[%clk 0:01:11.6]} 41. Kf5
{[%clk 0:00:32.5]} 41... Rxe3 {[%clk 0:01:11.1]} 0-1

[Event "*** Titled Tuesday Blitz"]
[Site "Chess.com"]
[Date "2020.03.03"]
[Round "9"]
[White "marcodobrikov"]
[Black "karwowskikacper"]
[Result "1-0"]
[WhiteElo "2561"]
[BlackElo "2375"]
[TimeControl "180+1"]
[EndTime "10:42:22 PST"]
[Termination "marcodobrikov won by resignation"]

1. e4 {[%clk 0:03:00.9]} 1... c5 {[%clk 0:02:59.7]} 2. Nf3 {[%clk 0:03:01.5]}
2... e6 {[%clk 0:03:00]} 3. d4 {[%clk 0:03:01.8]} 3... cxd4 {[%clk 0:03:00.9]}
4. Nxd4 {[%clk 0:03:02.6]} 4... Nc6 {[%clk 0:03:01.8]} 5. Nc3 {[%clk 0:03:03]}
5... a6 {[%clk 0:03:02.1]} 6. Be3 {[%clk 0:03:01.4]} 6... Qc7 {[%clk 0:03:02.6]}
7. Bd3 {[%clk 0:03:01.2]} 7... Nf6 {[%clk 0:03:02.9]} 8. O-O {[%clk 0:03:01]}
8... h5 {[%clk 0:03:03.5]} 9. h3 {[%clk 0:03:00.8]} 9... Bd6 {[%clk 0:03:03.3]}
10. Nxc6 {[%clk 0:02:53.6]} 10... bxc6 {[%clk 0:02:59.4]} 11. f4 {[%clk
0:02:53.7]} 11... e5 {[%clk 0:02:59.9]} 12. f5 {[%clk 0:02:51.6]} 12... Qa5
{[%clk 0:03:00.5]} 13. Qe1 {[%clk 0:02:49.7]} 13... Bc5 {[%clk 0:03:00.6]} 14.
Bxc5 {[%clk 0:02:44.4]} 14... Qxc5+ {[%clk 0:03:00.4]} 15. Kh2 {[%clk
0:02:41.5]} 15... Rb8 {[%clk 0:02:53.1]} 16. b3 {[%clk 0:02:40.5]} 16... O-O
{[%clk 0:02:40.8]} 17. Na4 {[%clk 0:02:37.4]} 17... Qe7 {[%clk 0:02:36.6]} 18.
c4 {[%clk 0:02:36.1]} 18... d5 {[%clk 0:02:36.7]} 19. cxd5 {[%clk 0:02:35.2]}
19... cxd5 {[%clk 0:02:37.6]} 20. exd5 {[%clk 0:02:35.3]} 20... Nxd5 {[%clk
0:02:37.8]} 21. Nc3 {[%clk 0:02:29.6]} 21... Nf6 {[%clk 0:02:22.1]} 22. Ne4
{[%clk 0:02:28.5]} 22... Bb7 {[%clk 0:02:22.5]} 23. Nxf6+ {[%clk 0:02:23.7]}
23... Qxf6 {[%clk 0:02:23.4]} 24. Be4 {[%clk 0:02:19.3]} 24... Rfd8 {[%clk
0:02:21.6]} 25. Qe2 {[%clk 0:02:14.2]} 25... Rd4 {[%clk 0:02:15.9]} 26. Bxb7
{[%clk 0:02:09.3]} 26... Rxb7 {[%clk 0:02:16.8]} 27. Rad1 {[%clk 0:02:08.9]}
27... Rxd1 {[%clk 0:02:13.9]} 28. Qxd1 {[%clk 0:02:07.3]} 28... h4 {[%clk
0:02:04.4]} 29. Qd5 {[%clk 0:02:04.1]} 29... Re7 {[%clk 0:01:59.9]} 30. Qe4
{[%clk 0:01:53.4]} 30... Rd7 {[%clk 0:01:56.8]} 31. a4 {[%clk 0:01:43.5]} 31...
Rd4 {[%clk 0:01:54.2]} 32. Qe3 {[%clk 0:01:43.6]} 32... Qd6 {[%clk 0:01:50.9]}
33. f6 {[%clk 0:01:38.6]} 33... gxf6 {[%clk 0:01:31.1]} 34. Qh6 {[%clk
0:01:35.1]} 34... Rd2 {[%clk 0:01:14.5]} 35. Rxf6 {[%clk 0:01:29.1]} 35... Qd5
{[%clk 0:01:14.7]} 36. Qg5+ {[%clk 0:01:13]} 36... Kf8 {[%clk 0:01:14.8]} 37.
Rh6 {[%clk 0:01:11.6]} 37... Rxg2+ {[%clk 0:00:48.4]} 38. Qxg2 {[%clk
0:00:59.4]} 38... Qd4 {[%clk 0:00:46.1]} 39. Rh8+ {[%clk 0:00:55.5]} 39... Ke7
{[%clk 0:00:45.3]} 40. Qg5+ {[%clk 0:00:56.1]} 40... f6 {[%clk 0:00:45.8]} 41.
Qg7+ {[%clk 0:00:56]} 41... Ke6 {[%clk 0:00:46]} 42. Re8+ {[%clk 0:00:55.3]}
42... Kf5 {[%clk 0:00:46.6]} 43. Qh7+ {[%clk 0:00:50.7]} 43... Kg5 {[%clk
0:00:41.9]} 44. Rg8+ {[%clk 0:00:49.8]} 1-0

[Event "*** Titled Tuesday Blitz"]
[Site "Chess.com"]
[Date "2020.03.03"]
[Round "9"]
[White "MokshAD1603"]
[Black "IMRosen"]
[Result "0-1"]
[WhiteElo "2225"]
[BlackElo "2505"]
[TimeControl "180+1"]
[EndTime "10:42:33 PST"]
[Termination "IMRosen won by checkmate"]

1. d4 {[%clk 0:02:58.3]} 1... d5 {[%clk 0:02:56.9]} 2. c4 {[%clk 0:02:57.3]}
2... e6 {[%clk 0:02:56.7]} 3. Nc3 {[%clk 0:02:56.5]} 3... Nf6 {[%clk 0:02:56.1]}
4. Nf3 {[%clk 0:02:53.1]} 4... Be7 {[%clk 0:02:55.3]} 5. Bf4 {[%clk 0:02:52.4]}
5... O-O {[%clk 0:02:54.7]} 6. e3 {[%clk 0:02:53.3]} 6... b6 {[%clk 0:02:54.4]}
7. Be2 {[%clk 0:02:51.1]} 7... dxc4 {[%clk 0:02:53.6]} 8. Bxc4 {[%clk 0:02:52]}
8... Bb7 {[%clk 0:02:54.1]} 9. O-O {[%clk 0:02:51.3]} 9... Nbd7 {[%clk
0:02:22.4]} 10. Qe2 {[%clk 0:02:51]} 10... Ne4 {[%clk 0:02:16.7]} 11. Rac1
{[%clk 0:02:44.1]} 11... Nxc3 {[%clk 0:02:10.9]} 12. Rxc3 {[%clk 0:02:45]} 12...
c5 {[%clk 0:02:09.3]} 13. Ba6 {[%clk 0:02:42.8]} 13... Qc8 {[%clk 0:02:05.7]}
14. Bxb7 {[%clk 0:02:40.5]} 14... Qxb7 {[%clk 0:02:06.6]} 15. dxc5 {[%clk
0:02:40]} 15... Nxc5 {[%clk 0:02:04.1]} 16. b4 {[%clk 0:02:39.7]} 16... Na6
{[%clk 0:01:42.7]} 17. a3 {[%clk 0:02:39.5]} 17... Rac8 {[%clk 0:01:42.8]} 18.
Rd3 {[%clk 0:02:37.5]} 18... Nb8 {[%clk 0:01:33.3]} 19. h3 {[%clk 0:02:36.3]}
19... Rfd8 {[%clk 0:01:24.9]} 20. Rfd1 {[%clk 0:02:29.1]} 20... Nc6 {[%clk
0:01:21.6]} 21. Ne5 {[%clk 0:01:53.2]} 21... Nxe5 {[%clk 0:01:08.8]} 22. Bxe5
{[%clk 0:01:54.1]} 22... Rxd3 {[%clk 0:00:46.7]} 23. Rxd3 {[%clk 0:01:55]} 23...
Rd8 {[%clk 0:00:42.2]} 24. Qg4 {[%clk 0:01:51.8]} 24... g6 {[%clk 0:00:41.5]}
25. Rxd8+ {[%clk 0:01:47.9]} 25... Bxd8 {[%clk 0:00:42.4]} 26. Qd4 {[%clk
0:01:48.1]} 26... Be7 {[%clk 0:00:27.8]} 27. Bh8 {[%clk 0:01:46.1]} 27... Bf8
{[%clk 0:00:24.1]} 28. Bf6 {[%clk 0:01:46.1]} 28... Qd5 {[%clk 0:00:18.1]} 29.
Qc3 {[%clk 0:01:46.1]} 29... Qd1+ {[%clk 0:00:14.7]} 30. Kh2 {[%clk 0:01:45.6]}
30... Qd6+ {[%clk 0:00:15.4]} 31. Be5 {[%clk 0:01:44.7]} 31... Qd7 {[%clk
0:00:15.5]} 32. a4 {[%clk 0:01:43.7]} 32... Qxa4 {[%clk 0:00:12.1]} 33. Qc8
{[%clk 0:01:40.6]} 33... Qxb4 {[%clk 0:00:12.1]} 34. Qb8 {[%clk 0:01:37.4]}
34... a5 {[%clk 0:00:09]} 35. Bd4 {[%clk 0:01:37.4]} 35... Qd6+ {[%clk
0:00:08.5]} 36. Qxd6 {[%clk 0:01:37.4]} 36... Bxd6+ {[%clk 0:00:09.4]} 37. g3
{[%clk 0:01:37.6]} 37... b5 {[%clk 0:00:09.9]} 38. Kg2 {[%clk 0:01:37.7]} 38...
b4 {[%clk 0:00:08.5]} 39. Kf3 {[%clk 0:01:38.3]} 39... a4 {[%clk 0:00:08.6]} 40.
Ke2 {[%clk 0:01:38.3]} 40... b3 {[%clk 0:00:07.6]} 41. Kd3 {[%clk 0:01:35.8]}
41... Kf8 {[%clk 0:00:05]} 42. Kc3 {[%clk 0:01:35.3]} 42... Ke7 {[%clk
0:00:04.9]} 43. Kb2 {[%clk 0:01:35.7]} 43... f6 {[%clk 0:00:05]} 44. g4 {[%clk
0:01:35.4]} 44... Be5 {[%clk 0:00:05.3]} 45. Bxe5 {[%clk 0:01:30.1]} 45... fxe5
{[%clk 0:00:06.2]} 46. Ka3 {[%clk 0:01:30.2]} 46... e4 {[%clk 0:00:06.3]} 47.
Kb2 {[%clk 0:01:29.2]} 47... Kd6 {[%clk 0:00:06.2]} 48. Ka3 {[%clk 0:01:30.1]}
48... Kc5 {[%clk 0:00:06.5]} 49. Kxa4 {[%clk 0:01:30.4]} 49... b2 {[%clk
0:00:06.6]} 50. Ka3 {[%clk 0:01:30.7]} 50... b1=Q {[%clk 0:00:07.5]} 51. Ka4
{[%clk 0:01:31]} 51... Qa2# {[%clk 0:00:07.5]} 0-1

[Event "*** Titled Tuesday Blitz"]
[Site "Chess.com"]
[Date "2020.03.03"]
[Round "9"]
[White "Abdimalik_Abdisalimov"]
[Black "TigrVShlyape"]
[Result "1/2-1/2"]
[WhiteElo "2832"]
[BlackElo "2894"]
[TimeControl "180+1"]
[EndTime "10:42:35 PST"]
[Termination "Game drawn by agreement"]

1. Nf3 {[%clk 0:03:00.1]} 1... Nf6 {[%clk 0:02:58.8]} 2. d4 {[%clk 0:03:00.3]}
2... d5 {[%clk 0:02:58.1]} 3. c4 {[%clk 0:03:00.1]} 3... c6 {[%clk 0:02:58.4]}
4. Nc3 {[%clk 0:02:59.8]} 4... a6 {[%clk 0:02:58.4]} 5. c5 {[%clk 0:02:58.5]}
5... g6 {[%clk 0:02:57.3]} 6. Bf4 {[%clk 0:02:58.5]} 6... Nh5 {[%clk 0:02:56.6]}
7. Be5 {[%clk 0:02:55.4]} 7... Bg7 {[%clk 0:02:56]} 8. e3 {[%clk 0:02:52.4]}
8... O-O {[%clk 0:02:49.9]} 9. Be2 {[%clk 0:02:51.3]} 9... Bg4 {[%clk
0:02:47.5]} 10. Bxg7 {[%clk 0:02:46.1]} 10... Kxg7 {[%clk 0:02:40.7]} 11. Ne5
{[%clk 0:02:44.5]} 11... Bxe2 {[%clk 0:02:39.4]} 12. Qxe2 {[%clk 0:02:45.4]}
12... Nd7 {[%clk 0:02:36.8]} 13. f4 {[%clk 0:02:42.5]} 13... Nhf6 {[%clk
0:02:12.6]} 14. O-O {[%clk 0:02:41.5]} 14... e6 {[%clk 0:02:06]} 15. b4 {[%clk
0:02:40.2]} 15... Nxe5 {[%clk 0:01:58.8]} 16. fxe5 {[%clk 0:02:39.1]} 16... Nd7
{[%clk 0:01:59.3]} 17. Qg4 {[%clk 0:02:31]} 17... Qe7 {[%clk 0:01:56.2]} 18. Ne2
{[%clk 0:02:08.2]} 18... f6 {[%clk 0:01:39.4]} 19. exf6+ {[%clk 0:02:02.7]}
19... Nxf6 {[%clk 0:01:38.3]} 20. Qg5 {[%clk 0:02:00.8]} 20... Rae8 {[%clk
0:00:48.6]} 21. Qe5 {[%clk 0:01:35.6]} 21... Kg8 {[%clk 0:00:47.2]} 22. Rf4
{[%clk 0:01:32.6]} 22... Nd7 {[%clk 0:00:34.5]} 23. Rxf8+ {[%clk 0:01:31.6]}
23... Rxf8 {[%clk 0:00:27.4]} 24. Qc7 {[%clk 0:01:29.1]} 24... Qf7 {[%clk
0:00:27.4]} 25. Qf4 {[%clk 0:00:57.2]} 25... e5 {[%clk 0:00:25.3]} 26. Qxf7+
{[%clk 0:00:56]} 26... Kxf7 {[%clk 0:00:24.8]} 27. Rf1+ {[%clk 0:00:55.5]} 27...
Ke7 {[%clk 0:00:21.8]} 28. Rxf8 {[%clk 0:00:56.4]} 28... Nxf8 {[%clk 0:00:21.8]}
29. Kf2 {[%clk 0:00:54.6]} 29... Kf6 {[%clk 0:00:20.5]} 30. Kf3 {[%clk
0:00:54.2]} 30... Ne6 {[%clk 0:00:20.6]} 1/2-1/2

[Event "*** Titled Tuesday Blitz"]
[Site "Chess.com"]
[Date "2020.03.03"]
[Round "9"]
[White "Gordima"]
[Black "Alexander_Zubov"]
[Result "1-0"]
[WhiteElo "2788"]
[BlackElo "2899"]
[TimeControl "180+1"]
[EndTime "10:42:37 PST"]
[Termination "Gordima won by resignation"]

1. d4 {[%clk 0:03:00.9]} 1... Nf6 {[%clk 0:02:59.5]} 2. c4 {[%clk 0:03:01.5]}
2... e6 {[%clk 0:02:58.5]} 3. Nc3 {[%clk 0:03:01.9]} 3... Bb4 {[%clk 0:02:58]}
4. Qc2 {[%clk 0:03:02.5]} 4... d5 {[%clk 0:02:57.4]} 5. cxd5 {[%clk 0:03:02.8]}
5... exd5 {[%clk 0:02:57.5]} 6. Bg5 {[%clk 0:03:02.6]} 6... Qd6 {[%clk
0:02:55.9]} 7. e3 {[%clk 0:02:53.2]} 7... Ne4 {[%clk 0:02:54.5]} 8. Bf4 {[%clk
0:02:52.9]} 8... Qb6 {[%clk 0:02:51]} 9. Bd3 {[%clk 0:02:50.8]} 9... O-O {[%clk
0:02:45]} 10. Ne2 {[%clk 0:02:50.2]} 10... Bf5 {[%clk 0:02:30.9]} 11. O-O {[%clk
0:02:45.4]} 11... Nxc3 {[%clk 0:02:21]} 12. bxc3 {[%clk 0:02:27.5]} 12... Bxd3
{[%clk 0:02:20.1]} 13. Qxd3 {[%clk 0:02:28.4]} 13... Bd6 {[%clk 0:02:20.5]} 14.
Rab1 {[%clk 0:02:23.3]} 14... Qc6 {[%clk 0:02:20.3]} 15. Bxd6 {[%clk 0:02:19.5]}
15... cxd6 {[%clk 0:02:21.2]} 16. Qb5 {[%clk 0:02:10.7]} 16... Nd7 {[%clk
0:02:19.4]} 17. Qxb7 {[%clk 0:02:09.5]} 17... Qxb7 {[%clk 0:02:15.7]} 18. Rxb7
{[%clk 0:02:10.4]} 18... Nb6 {[%clk 0:02:16.2]} 19. Rb1 {[%clk 0:02:07.3]} 19...
Rfc8 {[%clk 0:02:15.3]} 20. g4 {[%clk 0:02:00.5]} 20... Kf8 {[%clk 0:02:07]} 21.
h4 {[%clk 0:01:57.9]} 21... Rc4 {[%clk 0:01:58.3]} 22. Rb4 {[%clk 0:01:47.8]}
22... Rc6 {[%clk 0:01:48.3]} 23. Kg2 {[%clk 0:01:45.8]} 23... h6 {[%clk
0:01:42.8]} 24. h5 {[%clk 0:01:44.3]} 24... Kg8 {[%clk 0:01:41.4]} 25. a4 {[%clk
0:01:37.8]} 25... Nc8 {[%clk 0:01:24.1]} 26. Nf4 {[%clk 0:01:31.3]} 26... Rxc3
{[%clk 0:01:23.4]} 27. Nxd5 {[%clk 0:01:31]} 27... Rc6 {[%clk 0:01:11]} 28. Rc7
{[%clk 0:01:24.2]} 28... Rxc7 {[%clk 0:01:02.7]} 29. Nxc7 {[%clk 0:01:25.1]}
29... a5 {[%clk 0:01:03.3]} 30. Rb5 {[%clk 0:00:59.2]} 30... Ra7 {[%clk
0:01:02.7]} 31. Nd5 {[%clk 0:00:58.8]} 31... Kh7 {[%clk 0:00:59.3]} 32. Rb8
{[%clk 0:00:54.3]} 32... Ne7 {[%clk 0:00:58.7]} 33. Nxe7 {[%clk 0:00:54.8]}
33... Rxe7 {[%clk 0:00:59.6]} 34. Rb5 {[%clk 0:00:55.5]} 34... Ra7 {[%clk
0:00:58.8]} 35. Rb6 {[%clk 0:00:53.8]} 35... Rc7 {[%clk 0:00:56.8]} 36. Ra6
{[%clk 0:00:52.6]} 36... Rc2 {[%clk 0:00:56.1]} 37. Rxa5 {[%clk 0:00:52.6]}
37... Ra2 {[%clk 0:00:56.6]} 38. Kg3 {[%clk 0:00:50]} 38... g5 {[%clk
0:00:55.1]} 39. hxg6+ {[%clk 0:00:48.3]} 39... Kxg6 {[%clk 0:00:56]} 40. Ra6
{[%clk 0:00:48.5]} 40... f6 {[%clk 0:00:56.2]} 41. Rxd6 {[%clk 0:00:47.8]} 41...
Rxa4 {[%clk 0:00:56.2]} 42. f3 {[%clk 0:00:46.6]} 42... Ra8 {[%clk 0:00:54.9]}
43. Kf4 {[%clk 0:00:46.7]} 43... Ra4 {[%clk 0:00:54.3]} 44. e4 {[%clk
0:00:46.6]} 44... Kg7 {[%clk 0:00:51.6]} 45. Kf5 {[%clk 0:00:46.2]} 1-0

[Event "*** Titled Tuesday Blitz"]
[Site "Chess.com"]
[Date "2020.03.03"]
[Round "9"]
[White "Sankalp_Gupta2003"]
[Black "Gabix_94"]
[Result "1-0"]
[WhiteElo "2854"]
[BlackElo "2709"]
[TimeControl "180+1"]
[EndTime "10:42:38 PST"]
[Termination "Sankalp_Gupta2003 won by checkmate"]

1. e4 {[%clk 0:02:42.1]} 1... e5 {[%clk 0:02:58.9]} 2. Nf3 {[%clk 0:02:42]} 2...
Nc6 {[%clk 0:02:59.4]} 3. d4 {[%clk 0:02:42.2]} 3... exd4 {[%clk 0:02:59.5]} 4.
Nxd4 {[%clk 0:02:43.1]} 4... Bc5 {[%clk 0:03:00]} 5. Nb3 {[%clk 0:02:42.8]} 5...
Bb6 {[%clk 0:03:00]} 6. Nc3 {[%clk 0:02:43.3]} 6... Nf6 {[%clk 0:02:59]} 7. Qe2
{[%clk 0:02:40.4]} 7... a5 {[%clk 0:02:59.2]} 8. e5 {[%clk 0:02:39]} 8... O-O
{[%clk 0:02:59.3]} 9. exf6 {[%clk 0:02:31.1]} 9... Re8 {[%clk 0:02:58.2]} 10.
Be3 {[%clk 0:02:19.5]} 10... d5 {[%clk 0:02:57.7]} 11. O-O-O {[%clk 0:02:16.8]}
11... a4 {[%clk 0:02:57.4]} 12. Nd2 {[%clk 0:02:12.3]} 12... a3 {[%clk
0:02:45.5]} 13. Nde4 {[%clk 0:02:08.8]} 13... axb2+ {[%clk 0:02:41.2]} 14. Kb1
{[%clk 0:02:05.8]} 14... d4 {[%clk 0:02:38]} 15. Qh5 {[%clk 0:02:00.2]} 15...
Ra5 {[%clk 0:01:59.6]} 16. Ng5 {[%clk 0:01:54.8]} 16... Qxf6 {[%clk 0:02:00]}
17. Qxh7+ {[%clk 0:01:52.2]} 17... Kf8 {[%clk 0:02:00.4]} 18. Nce4 {[%clk
0:01:50.4]} 18... Qh6 {[%clk 0:01:46.7]} 19. Bd2 {[%clk 0:01:41.5]} 19... Rae5
{[%clk 0:01:27.2]} 20. Bd3 {[%clk 0:01:37.5]} 20... Bf5 {[%clk 0:01:23.4]} 21.
Qxh6 {[%clk 0:01:32.2]} 21... gxh6 {[%clk 0:01:24.3]} 22. Nf3 {[%clk 0:01:30.5]}
22... Rxe4 {[%clk 0:01:24.6]} 23. Bxe4 {[%clk 0:01:27.9]} 23... Bxe4 {[%clk
0:01:25.5]} 24. Bxh6+ {[%clk 0:01:28.8]} 24... Kg8 {[%clk 0:01:24.3]} 25. Rhe1
{[%clk 0:01:28.2]} 25... Re6 {[%clk 0:01:18.1]} 26. Ng5 {[%clk 0:01:14.3]} 26...
Bxc2+ {[%clk 0:01:17.2]} 27. Kxc2 {[%clk 0:01:12.4]} 27... Rxh6 {[%clk
0:01:18.1]} 28. Nf3 {[%clk 0:01:05.5]} 28... Kg7 {[%clk 0:01:07.3]} 29. Kxb2
{[%clk 0:01:04.9]} 29... Ba5 {[%clk 0:01:05.7]} 30. Re4 {[%clk 0:01:02.2]} 30...
Bc3+ {[%clk 0:01:04.7]} 31. Kb3 {[%clk 0:01:02.3]} 31... Na5+ {[%clk 0:00:57.1]}
32. Kc2 {[%clk 0:01:00.7]} 32... Rc6 {[%clk 0:00:57.6]} 33. Ne5 {[%clk
0:00:57.4]} 33... Rb6 {[%clk 0:00:55.3]} 34. Rg4+ {[%clk 0:00:49.5]} 34... Kh6
{[%clk 0:00:51.6]} 35. Rd3 {[%clk 0:00:48.1]} 35... Rb2+ {[%clk 0:00:50.5]} 36.
Kc1 {[%clk 0:00:44.2]} 36... Rxa2 {[%clk 0:00:38.1]} 37. Rh3# {[%clk 0:00:43]}
1-0

[Event "*** Titled Tuesday Blitz"]
[Site "Chess.com"]
[Date "2020.03.03"]
[Round "9"]
[White "isla88"]
[Black "swayamsm"]
[Result "1/2-1/2"]
[WhiteElo "2312"]
[BlackElo "2465"]
[TimeControl "180+1"]
[EndTime "10:42:42 PST"]
[Termination "Game drawn - insufficient material"]

1. c4 {[%clk 0:03:00]} 1... Nf6 {[%clk 0:02:59.3]} 2. Nc3 {[%clk 0:02:59.8]}
2... g6 {[%clk 0:02:56.7]} 3. e4 {[%clk 0:03:00.2]} 3... Bg7 {[%clk 0:02:57.6]}
4. d4 {[%clk 0:03:00.3]} 4... d6 {[%clk 0:02:57.6]} 5. h3 {[%clk 0:02:59.7]}
5... O-O {[%clk 0:02:58.2]} 6. Be3 {[%clk 0:03:00.1]} 6... c5 {[%clk 0:02:52.6]}
7. Nf3 {[%clk 0:02:58.7]} 7... Nc6 {[%clk 0:02:45.1]} 8. d5 {[%clk 0:02:57]}
8... Na5 {[%clk 0:02:44.3]} 9. Bd3 {[%clk 0:02:49.9]} 9... a6 {[%clk 0:02:43.1]}
10. O-O {[%clk 0:02:44.2]} 10... b5 {[%clk 0:02:36.9]} 11. cxb5 {[%clk
0:02:43.2]} 11... axb5 {[%clk 0:02:35.7]} 12. Bxb5 {[%clk 0:02:43.5]} 12... Qb6
{[%clk 0:02:32.3]} 13. b4 {[%clk 0:02:35.3]} 13... Nb7 {[%clk 0:02:23.3]} 14.
bxc5 {[%clk 0:02:33.2]} 14... Nxc5 {[%clk 0:02:24.2]} 15. Rb1 {[%clk 0:02:26.9]}
15... Qa5 {[%clk 0:02:23.9]} 16. Bc6 {[%clk 0:02:17.6]} 16... Qxc3 {[%clk
0:02:17]} 17. Bxa8 {[%clk 0:02:16.1]} 17... Ba6 {[%clk 0:02:17.3]} 18. Bc6
{[%clk 0:01:48.2]} 18... Bxf1 {[%clk 0:02:15.4]} 19. Qxf1 {[%clk 0:01:46.2]}
19... Nfxe4 {[%clk 0:02:15.2]} 20. Rc1 {[%clk 0:01:40.3]} 20... Qb2 {[%clk
0:02:09.6]} 21. Qc4 {[%clk 0:01:36.9]} 21... Nc3 {[%clk 0:02:09.1]} 22. Re1
{[%clk 0:01:09.7]} 22... Qxa2 {[%clk 0:02:06.5]} 23. Qxa2 {[%clk 0:01:08.1]}
23... Nxa2 {[%clk 0:02:07.4]} 24. Bxc5 {[%clk 0:01:08.5]} 24... dxc5 {[%clk
0:02:08.1]} 25. Rxe7 {[%clk 0:01:09.1]} 25... Nb4 {[%clk 0:02:08.7]} 26. Bb7
{[%clk 0:01:06.6]} 26... Rd8 {[%clk 0:02:05.6]} 27. Rc7 {[%clk 0:00:50.8]} 27...
Nxd5 {[%clk 0:02:01.1]} 28. Rxc5 {[%clk 0:00:51]} 28... Nf4 {[%clk 0:01:58.7]}
29. Rc8 {[%clk 0:00:48]} 29... Rxc8 {[%clk 0:01:57.1]} 30. Bxc8 {[%clk
0:00:47.5]} 30... f5 {[%clk 0:01:54.5]} 31. h4 {[%clk 0:00:44.1]} 31... Kf7
{[%clk 0:01:52.7]} 32. g3 {[%clk 0:00:42.6]} 32... Ne2+ {[%clk 0:01:53]} 33. Kf1
{[%clk 0:00:41.3]} 33... Nc3 {[%clk 0:01:53.9]} 34. h5 {[%clk 0:00:40.5]} 34...
Bf6 {[%clk 0:01:52.7]} 35. hxg6+ {[%clk 0:00:39.3]} 35... hxg6 {[%clk
0:01:53.6]} 36. Ba6 {[%clk 0:00:39.5]} 36... g5 {[%clk 0:01:49.4]} 37. Bc4+
{[%clk 0:00:39.2]} 37... Kg6 {[%clk 0:01:49.9]} 38. Bd3 {[%clk 0:00:36.9]} 38...
g4 {[%clk 0:01:50.2]} 39. Nd2 {[%clk 0:00:36.5]} 39... Kg5 {[%clk 0:01:49.6]}
40. f3 {[%clk 0:00:35.5]} 40... Be5 {[%clk 0:01:40]} 41. f4+ {[%clk 0:00:33.5]}
41... Bxf4 {[%clk 0:01:40]} 42. gxf4+ {[%clk 0:00:33.7]} 42... Kxf4 {[%clk
0:01:40.9]} 43. Nc4 {[%clk 0:00:31.8]} 43... Nd5 {[%clk 0:01:40.4]} 44. Ke2
{[%clk 0:00:31.1]} 44... Nb4 {[%clk 0:01:34.4]} 45. Bxf5 {[%clk 0:00:29.4]}
45... Kxf5 {[%clk 0:01:34.2]} 46. Ne3+ {[%clk 0:00:29.7]} 46... Kf4 {[%clk
0:01:34.9]} 47. Nxg4 {[%clk 0:00:30]} 1/2-1/2